fUSD/lending_fUSD_20260308
["ID","MTS","AMOUNT","RATE_DAILY","PERIOD"]
[407961489,1772934649632,-151.0,0.00047148,60]
[407961490,1772934649642,-151.0,0.00047148,60]
[407961491,1772934649652,-304.0,0.00047148,30]
[407961492,1772934649661,-231.56008107,0.00047148,120]
[407961493,1772934649677,-326.84365431,0.00047148,120]
[407961494,1772934649687,-154.56325594,0.00047148,120]
[407961495,1772934649697,-154.69561293,0.00047148,120]
[407961496,1772934649708,-293.92274525,0.00047148,60]
[407961497,1772934649717,-32336.70655336,0.00047148,120]
[407961498,1772934649872,-1090.95207298,0.00047148,120]
[407961499,1772934649884,-559.17627581,0.00047148,120]
[407961500,1772934649965,-151.0,0.00041096,120]
[407961501,1772934649975,-16142.57982954,0.00047148,120]
[407961502,1772934649985,-233.0,0.00047148,120]
[407961503,1772934649995,-2493.61828977,0.00047148,120]
[407961504,1772934650005,-636.69,0.00047148,30]
[407961505,1772934650015,-477.73,0.00047148,30]
[407961506,1772934650024,-204.19,0.00047148,30]
[407961507,1772934650034,-183.2,0.00047148,30]
[407961508,1772934650044,-566.83,0.00047148,30]
[407961509,1772934650058,-355.99,0.00047148,120]
[407961510,1772934650068,-14000.0,0.00047148,120]
[407961511,1772934650078,-200.0,0.00047148,120]
[407961512,1772934650087,-155.523,0.00047148,2]
[407961513,1772934650098,-155.0,0.00047148,2]
[407961514,1772934650107,-155.0,0.00047148,2]
[407961515,1772934650117,-155.0,0.00047148,2]
[407961516,1772934650128,-155.0,0.00047148,2]
[407961517,1772934650138,-155.0,0.00047148,2]
[407961518,1772934650147,-160.37114595,0.00047158,30]
[407961519,1772934650158,-200.0,0.00047168,2]
[407961520,1772934650168,-151.0,0.000472,120]
[407961521,1772934650178,-154.0,0.000474,120]
[407961522,1772934650188,-168.0,0.00047417,2]
[407961523,1772934650199,-1000.0,0.00047422,30]
[407961524,1772934650209,-168.0,0.00047498,120]
[407961525,1772934650220,-1043.4,0.00047615,120]
[407961526,1772934650230,-150.0,0.00047686,120]
[407961527,1772934650240,-1084.0,0.000477,60]
[407961528,1772934650250,-150.0,0.00047706,120]
[407961529,1772934650261,-200.0,0.00047716,2]
[407961530,1772934650270,-150.0,0.00047755,120]
[407961531,1772934650280,-3036.39,0.000478,120]
[407961532,1772934650290,-588.92,0.000478,120]
[407961533,1772934650300,-150.0,0.0004784,120]
[407961534,1772934650310,-168.0,0.00047926,2]
[407961535,1772934650319,-2942.63914128,0.00048,120]
[407961536,1772934650329,-979.97120881,0.00048,120]
[407961537,1772934650339,-1000.0,0.00048,120]
[407961538,1772934650348,-1000.0,0.00048,120]
[407961539,1772934650359,-275.81,0.00048,120]
[407961540,1772934650368,-161.0,0.00048053,16]
[407961541,1772934650378,-2164.0,0.00048063,16]
[407961542,1772934650389,-200.0,0.00048264,2]
[407961543,1772934650399,-168.0,0.00048268,2]
[407961544,1772934650409,-400.2697,0.000483,90]
[407961545,1772934650420,-168.0,0.00048308,2]
[407961546,1772934650431,-150.0,0.00048348,120]
[407961547,1772934650441,-150.0,0.00048348,120]
[407961548,1772934650451,-500.0,0.00048356,60]
[407961549,1772934650460,-500.0,0.00048356,60]
[407961550,1772934650471,-500.0,0.00048356,60]
[407961551,1772934650480,-845.0,0.00048373,31]
[407961552,1772934650490,-151.0,0.000484,120]
[407961553,1772934650500,-168.0,0.00048422,2]
[407961554,1772934650510,-565.6878891,0.00048453,2]
[407961555,1772934650520,-559.0,0.000485,120]
[407961556,1772934650531,-506.0,0.000485,31]
[407961557,1772934650540,-168.0,0.00048508,2]
[407961558,1772934650550,-161.678138,0.00048516,30]
[407961559,1772934650561,-1161.88,0.00048532,120]
[407961560,1772934650571,-154.0,0.000486,120]
[407961561,1772934650581,-847.0,0.00048639,31]
[407961562,1772934650592,-5000.0,0.00048652,30]
[407961563,1772934650603,-5000.0,0.000487,120]
[407961564,1772934650612,-504.86669076,0.000487,120]
[407961565,1772934650704,-1019.64210675,0.00018585,2]
[407961566,1772934650724,-263.18994475,0.00018585,2]
[407961567,1772934650734,-1282.8320515,0.00019242,2]
[407961568,1772934650744,-1282.8320515,0.000199,2]
[407961569,1772934650754,-3759.531,0.00033774,2]
[407961570,1772934650764,-12.11754731,0.00036774,2]
[407961571,1772934650776,-3735.88245269,0.00036774,2]
[407961572,1772934650787,-1005.62730724,0.00039774,2]
[407961573,1772934650799,-2742.37269276,0.00039774,2]
[407961574,1772934650809,-151.0,0.00041096,120]
[407961575,1772934650819,-151.0,0.00041096,120]
[407961576,1772934650829,-233.641456,0.00041096,120]
[407961577,1772934650839,-49.35085129,0.00041096,120]
[407961578,1772934650913,-2500.0,0.00015097,2]
[407961579,1772934650924,-217.29025406,0.00016932,2]
[407961580,1772934650935,-151.0,0.00017,2]
[407961581,1772934650945,-8106.56,0.00027397,10]
[407961582,1772934650956,-101.64914871,0.00041096,120]
[407961583,1772934650966,-151.0,0.00041096,120]
[407961584,1772934650977,-151.0,0.00041096,120]
[407961585,1772934650988,-151.0,0.00041096,120]
[407961586,1772934650998,-151.0,0.00041096,120]
[407961587,1772934651008,-151.0,0.00041096,120]
[407961588,1772934651018,-210.916462,0.00041096,120]
[407961589,1772934651028,-151.0,0.00041096,120]
[407961590,1772934651039,-151.0,0.00041096,120]
[407961591,1772934651050,-151.0,0.00041096,120]
[407961592,1772934651266,-151.0,0.00041096,120]
[407961593,1772934651278,-151.0,0.00041096,120]
[407961594,1772934651288,-151.0,0.00041096,120]
[407961595,1772934651300,-151.0,0.00041096,120]
[407961596,1772934651312,-151.0,0.00041096,120]
[407961597,1772934651322,-847.0,0.00044384,120]
[407961598,1772934651331,-847.0,0.00044932,120]
[407961599,1772934651343,-4495.13330924,0.000487,120]
[407961600,1772934651353,-5000.0,0.000487,120]
[407961601,1772934651363,-168.0,0.0004873,2]
[407961602,1772934651372,-150.0,0.00048764,120]
[407961603,1772934651382,-619.0,0.00048774,2]
[407961604,1772934651391,-1042.0,0.00048774,2]
[407961605,1772934651401,-414.0,0.00048774,2]
[407961606,1772934651410,-168.0,0.00048781,7]
[407961607,1772934651420,-200.0,0.00048812,2]
[407961608,1772934651429,-150.0,0.0004882,120]
[407961609,1772934651439,-150.0,0.00048852,120]
[407961610,1772934651448,-169.11717666,0.000489,120]
[407961611,1772934651457,-150.0,0.00048909,120]
[407961612,1772934651467,-150.0,0.00048921,120]
[407961613,1772934651476,-150.0,0.00048961,120]
[407961614,1772934651485,-150.0,0.00049,120]
[407961615,1772934651495,-150.0,0.00049,120]
[407961616,1772934651504,-188.91683424,0.00049,120]
[407961617,1772934651514,-1105.693885,0.00049,120]
[407961618,1772934651523,-1920.98611485,0.00049,120]
[407961619,1772934651533,-1084.0,0.0004905,60]
[407961620,1772934651543,-847.0,0.0004908,31]
[407961621,1772934651552,-160.0,0.00049096,31]
[407961622,1772934651562,-258.0,0.00049145,90]
[407961623,1772934651572,-168.0,0.00049158,30]
[407961624,1772934651582,-565.6878891,0.00049221,2]
[407961625,1772934651592,-150.0,0.00049242,120]
[407961626,1772934651601,-168.0,0.00049289,7]
[407961627,1772934651611,-150.0,0.00049299,120]
[407961628,1772934651622,-666.0,0.00049315,120]
[407961629,1772934651631,-666.0,0.00049315,120]
[407961630,1772934651640,-669.31761839,0.00049315,120]
[407961631,1772934651650,-241.4309839,0.00049315,120]
[407961632,1772934651659,-446.81881133,0.00049315,120]
[407961633,1772934651668,-272.65075267,0.00049315,120]
[407961634,1772934651678,-188.27629725,0.00049315,120]
[407961635,1772934651688,-160.22442832,0.00049315,120]
[407961636,1772934651699,-167.36056352,0.00049315,120]
[407961637,1772934651710,-345.57908169,0.00049315,120]
[407961638,1772934651719,-550.30736831,0.00049315,120]
[407961639,1772934651729,-300.0,0.00049315,2]
[407961640,1772934651739,-300.0,0.00049315,2]
[407961641,1772934651748,-300.0,0.00049315,2]
[407961642,1772934651759,-300.0,0.00049315,2]
[407961643,1772934651770,-300.0,0.00049315,2]
[407961644,1772934651779,-300.0,0.00049315,2]
[407961645,1772934651789,-300.0,0.00049315,2]
[407961646,1772934651800,-300.0,0.00049315,2]
[407961647,1772934651810,-300.0,0.00049315,2]
[407961648,1772934651820,-300.0,0.00049315,2]
[407961649,1772934651829,-300.0,0.00049315,2]
[407961650,1772934651839,-300.0,0.00049315,2]
[407961651,1772934651848,-300.81939378,0.00049315,2]
[407961652,1772934651857,-292.06099597,0.00049315,120]
[407961653,1772934651866,-500.0,0.00049315,120]
[407961654,1772934651875,-500.0,0.00049315,120]
[407961655,1772934651884,-500.0,0.00049315,120]
[407961656,1772934651894,-510.300605,0.00049315,120]
[407961657,1772934651903,-208.55682294,0.00049315,120]
[407961658,1772934651913,-238.21907496,0.00049315,120]
[407961659,1772934651922,-500.0,0.00049315,120]
[407961660,1772934651932,-289.43069213,0.00049315,120]
[407961661,1772934651942,-218.11052384,0.00049315,120]
[407961662,1772934651951,-562.03252311,0.00049315,120]
[407961663,1772934651960,-217.68706907,0.00049315,120]
[407961664,1772934651969,-190.67206064,0.00049315,120]
[407961665,1772934651979,-150.93022365,0.00049315,120]
[407961666,1772934651988,-209.82477677,0.00049315,120]
[407961667,1772934651998,-500.0,0.00049315,120]
[407961668,1772934652008,-500.0,0.00049315,120]
[407961669,1772934652018,-150.4697365,0.00049315,120]
[407961670,1772934652027,-500.0,0.00049315,120]
[407961671,1772934652037,-226.56598348,0.00049315,120]
[407961672,1772934652046,-500.0,0.00049315,120]
[407961673,1772934652059,-237.14170911,0.00049315,120]
[407961674,1772934652069,-624.71044746,0.00049315,120]
[407961675,1772934652079,-315.92458486,0.00049315,120]
[407961676,1772934652088,-634.50329308,0.00049315,120]
[407961677,1772934652099,-211.62587114,0.00049315,120]
[407961678,1772934652108,-323.10230631,0.00049315,120]
[407961679,1772934652118,-500.0,0.00049315,120]
[407961680,1772934652127,-272.93227288,0.00049315,120]
[407961681,1772934652138,-500.0,0.00049315,120]
[407961682,1772934652148,-458.8064363,0.00049315,120]
[407961683,1772934652158,-159.04888052,0.00049315,120]
[407961684,1772934652168,-522.76559121,0.00049315,120]
[407961685,1772934652179,-500.0,0.00049315,120]
[407961686,1772934652188,-518.47419926,0.00049315,120]
[407961687,1772934652198,-265.57223625,0.00049315,120]
[407961688,1772934652208,-373.59326038,0.00049315,120]
[407961689,1772934652217,-500.0,0.00049315,120]
[407961690,1772934652226,-500.0,0.00049315,120]
[407961691,1772934652236,-204.2991733,0.00049315,120]
[407961692,1772934652245,-500.0,0.00049315,120]
[407961693,1772934652254,-492.52023368,0.00049315,120]
[407961694,1772934652263,-397.34283743,0.00049315,120]
[407961695,1772934652273,-241.86892969,0.00049315,120]
[407961696,1772934652282,-431.8391441,0.00049315,120]
[407961697,1772934652292,-279.59679332,0.00049315,120]
[407961698,1772934652301,-500.0,0.00049315,120]
[407961699,1772934652310,-206.26220018,0.00049315,120]
[407961700,1772934652320,-171.57743705,0.00049315,120]
[407961701,1772934652328,-574.72555252,0.00049315,120]
[407961702,1772934652338,-155.15492282,0.00049315,120]
[407961703,1772934652347,-500.0,0.00049315,120]
[407961704,1772934652356,-500.0,0.00049315,120]
[407961705,1772934652365,-500.0,0.00049315,120]
[407961706,1772934652374,-416.04992377,0.00049315,120]
[407961707,1772934652384,-191.1266,0.00049315,120]
[407961708,1772934652393,-188.22894485,0.00049315,120]
[407961709,1772934652403,-174.55419034,0.00049315,120]
[407961710,1772934652412,-185.56779901,0.00049315,120]
[407961711,1772934652421,-281.31209237,0.00049315,120]
[407961712,1772934652431,-228.44110738,0.00049315,120]
[407961713,1772934652440,-162.87379466,0.00049315,120]
[407961714,1772934652450,-157.09813906,0.00049315,120]
[407961715,1772934652460,-152.15910831,0.00049315,120]
[407961716,1772934652469,-195.9035429,0.00049315,120]
[407961717,1772934652479,-165.2510565,0.00049315,120]
[407961718,1772934652488,-270.11113081,0.00049315,120]
[407961719,1772934652497,-236.22692276,0.00049315,120]
[407961720,1772934652507,-210.53133424,0.00049315,120]
[407961721,1772934652516,-255.08416419,0.00049315,120]
[407961722,1772934652526,-384.49750749,0.00049315,120]
[407961723,1772934652535,-366.2977874,0.00049315,120]
[407961724,1772934652544,-357.40835787,0.00049315,120]
[407961725,1772934652554,-560.38664471,0.00049315,120]
[407961726,1772934652563,-500.0,0.00049315,120]
[407961727,1772934652572,-315.76008216,0.00049315,120]
[407961728,1772934652582,-217.21274123,0.00049315,120]
[407961729,1772934652591,-500.0,0.00049315,120]
[407961730,1772934652600,-151.4674467,0.00049315,120]
[407961731,1772934652609,-638.22877001,0.00049315,120]
[407961732,1772934652619,-630.98351164,0.00049315,120]
[407961733,1772934652628,-117.4606655,0.00049315,120]
[407961734,1772934653114,-42.96037458,0.00049315,120]
[407961735,1772934653123,-374.84498842,0.00049315,120]
[407961736,1772934653133,-44.67925575,0.00049315,120]
[407961737,1772934653149,-233.0007919,0.00049315,120]
[407961738,1772934653159,-295.75020425,0.00049315,120]
[407961739,1772934653171,-2567.23979575,0.00049315,120]
[407961740,1772934653181,-2862.99,0.00049315,120]
[407961741,1772934653191,-2862.99,0.00049315,120]
[407961742,1772934653202,-2862.99,0.00049315,120]
[407961743,1772934653213,-2862.99,0.00049315,120]
[407961744,1772934653225,-2862.99,0.00049315,120]
[407961745,1772934653236,-2862.99,0.00049315,120]
[407961746,1772934653246,-2862.99,0.00049315,120]
[407961747,1772934653256,-2862.99,0.00049315,120]
[407961748,1772934653268,-2862.99,0.00049315,120]
[407961749,1772934653279,-2862.99,0.00049315,120]
[407961750,1772934653288,-2862.99,0.00049315,120]
[407961751,1772934653298,-2862.99,0.00049315,120]
[407961752,1772934653308,-2862.99,0.00049315,120]
[407961753,1772934653318,-2862.99,0.00049315,120]
[407961754,1772934653328,-2862.99,0.00049315,120]
[407961755,1772934653338,-2862.99,0.00049315,120]
[407961756,1772934653348,-2166.78052923,0.00049315,120]
[407961757,1772934653360,-696.20947077,0.00049315,120]
[407961758,1772934653371,-675.86280256,0.00049315,120]
[407961759,1772934653382,-647.86506509,0.00049315,120]
[407961760,1772934653394,-408.60149387,0.00049315,120]
[407961761,1772934653463,-542.0,0.00032606,30]
[407961762,1772934653472,-259.0,0.00032606,30]
[407961763,1772934653481,-126.3447352,0.00033774,2]
[407961764,1772934653494,-1092.8752648,0.00033774,2]
[407961765,1772934653504,-924.237,0.00033774,2]
[407961766,1772934653513,-1213.0,0.00036774,2]
[407961767,1772934653523,-261.42041837,0.00041096,120]
[407961768,1772934653533,-1130.66063848,0.00049315,120]
[407961769,1772934653542,-2862.99,0.00049315,120]
[407961770,1772934653552,-2862.99,0.00049315,120]
[407961771,1772934653561,-125.59434864,0.00049315,120]
[407961772,1772934653576,-2737.39565136,0.00049315,120]
[407961773,1772934653585,-2862.99,0.00049315,120]
[407961774,1772934653595,-1997.90144037,0.00049315,120]
[407961775,1772934653609,-865.15663762,0.00049315,120]
[407961776,1772934653652,-216.1108027,0.00049315,120]
[407961777,1772934653661,-152.71141018,0.00049315,60]
[407961778,1772934653671,-838.25,0.00049315,120]
[407961779,1772934653679,-399.2453443,0.00049315,120]
[407961780,1772934653693,-439.0046557,0.00049315,120]
[407961781,1772934653702,-838.25,0.00049315,120]
[407961782,1772934653711,-838.25,0.00049315,120]
[407961783,1772934653720,-838.25,0.00049315,120]
[407961784,1772934653730,-189.8027943,0.00049315,120]
[407961785,1772934653741,-648.4472057,0.00049315,120]
[407961786,1772934653751,-838.25,0.00049315,120]
[407961787,1772934653760,-838.25,0.00049315,120]
[407961788,1772934653769,-838.25,0.00049315,120]
[407961789,1772934653779,-838.25,0.00049315,120]
[407961790,1772934653789,-838.25,0.00049315,120]
[407961791,1772934653798,-838.25,0.00049315,120]
[407961792,1772934653807,-838.25,0.00049315,120]
[407961793,1772934653817,-838.25,0.00049315,120]
[407961794,1772934653826,-838.25,0.00049315,120]
[407961795,1772934653835,-838.25,0.00049315,120]
[407961796,1772934653844,-838.25,0.00049315,120]
[407961797,1772934653854,-838.25,0.00049315,120]
[407961798,1772934653864,-500.0,0.00049315,120]
[407961799,1772934653875,-838.25,0.00049315,120]
[407961800,1772934653886,-500.0,0.00049315,120]
[407961801,1772934653896,-838.25,0.00049315,120]
[407961802,1772934653906,-458.57264459,0.00049315,120]
[407961803,1772934653915,-500.0,0.00049315,120]
[407961804,1772934653925,-838.25,0.00049315,120]
[407961805,1772934653937,-500.0,0.00049315,120]
[407961806,1772934653946,-838.25,0.00049315,120]
[407961807,1772934653955,-500.0,0.00049315,120]
[407961808,1772934653965,-838.25,0.00049315,120]
[407961809,1772934653974,-500.0,0.00049315,120]
[407961810,1772934653984,-838.40314766,0.00049315,120]
[407961811,1772934653993,-500.0,0.00049315,120]
[407961812,1772934654002,-500.0,0.00049315,120]
[407961813,1772934654011,-500.0,0.00049315,120]
[407961814,1772934654021,-500.0,0.00049315,120]
[407961815,1772934654030,-500.0,0.00049315,120]
[407961816,1772934654040,-500.0,0.00049315,120]
[407961817,1772934654050,-500.0,0.00049315,120]
[407961818,1772934654065,-500.0,0.00049315,120]
[407961819,1772934654075,-500.0,0.00049315,120]
[407961820,1772934654085,-500.0,0.00049315,120]
[407961821,1772934654095,-500.0,0.00049315,120]
[407961822,1772934654107,-500.0,0.00049315,120]
[407961823,1772934654118,-500.0,0.00049315,120]
[407961824,1772934654129,-511.63984775,0.00049315,120]
[407961825,1772934654139,-270.41295208,0.00049315,120]
[407961826,1772934654150,-186.56900196,0.00049315,120]
[407961827,1772934654159,-320.65181496,0.00049315,120]
[407961828,1772934654169,-236.61463793,0.00049315,120]
[407961829,1772934654179,-261.2925893,0.00049315,120]
[407961830,1772934654189,-263.54740743,0.00049315,120]
[407961831,1772934654199,-257.8181637,0.00049315,120]
[407961832,1772934654208,-182.3490677,0.00049315,120]
[407961833,1772934654217,-321.19112064,0.00049315,120]
[407961834,1772934654227,-236.51733015,0.00049315,120]
[407961835,1772934654237,-500.0,0.00049315,120]
[407961836,1772934654247,-273.0471,0.00049315,120]
[407961837,1772934654259,-1081.895,0.00049315,120]
[407961838,1772934654272,-150.0,0.00049343,120]
[407961839,1772934654282,-168.0,0.00049345,2]
[407961840,1772934654291,-150.0,0.0004938,120]
[407961841,1772934654304,-226.0,0.000494,30]
[407961842,1772934654314,-803.0,0.000494,30]
[407961843,1772934654323,-150.0,0.00049422,120]
[407961844,1772934654334,-168.0,0.0004943,7]
[407961845,1772934654343,-1515.0,0.00049443,14]
[407961846,1772934654354,-1515.0,0.00049443,14]
[407961847,1772934654364,-1515.0,0.00049443,14]
[407961848,1772934654373,-1515.0,0.00049443,14]
[407961849,1772934654383,-1515.0,0.00049443,14]
[407961850,1772934654393,-1515.0,0.00049443,14]
[407961851,1772934654403,-1515.0,0.00049443,14]
[407961852,1772934654412,-1515.0,0.00049443,14]
[407961853,1772934654422,-1515.0,0.00049443,14]
[407961854,1772934654431,-1515.0,0.00049443,14]
[407961855,1772934654441,-1515.0,0.00049443,14]
[407961856,1772934654452,-1515.0,0.00049443,14]
[407961857,1772934654461,-1515.0,0.00049443,14]
[407961858,1772934654472,-1515.0,0.00049443,14]
[407961859,1772934654482,-1515.0,0.00049443,14]
[407961860,1772934654491,-1515.0,0.00049443,14]
[407961861,1772934654500,-1515.0,0.00049443,14]
[407961862,1772934654510,-1515.0,0.00049443,14]
[407961863,1772934654519,-1515.0,0.00049443,14]
[407961864,1772934654528,-1515.0,0.00049443,14]
[407961865,1772934654538,-409.87966227,0.00049443,14]
[407961866,1772934654550,-1105.12033773,0.00049443,14]
[407961867,1772934654560,-1515.0,0.00049443,14]
[407961868,1772934654570,-545.32966227,0.00049443,14]
[407961869,1772934654584,-290.47709154,0.00049443,14]
[407961870,1772934654595,-37.53244608,0.00049452,60]
[407961871,1772934654607,-471.30401127,0.00049452,60]
[407961872,1772934654616,-194.69598873,0.00049452,60]
[407961873,1772934654628,-305.30401127,0.00049452,60]
[407961874,1772934654639,-169.05263473,0.00049452,60]
[407961875,1772934654654,-686.69924265,0.00036774,2]
[407961876,1772934654665,-235.30075735,0.00036774,2]
[407961877,1772934654675,-119.40847373,0.00049452,60]
[407961878,1772934654687,-211.53889154,0.00049452,60]
[407961879,1772934654697,-253.25622158,0.00049489,120]
[407961880,1772934654708,-523.49586585,0.00049489,120]
[407961881,1772934654719,-416.30793719,0.00049489,120]
[407961891,1772935193741,10000.0,0.0002,120]
[407961911,1772935831342,-385.86004775,0.00015,30]
[407961913,1772935831351,-569.61111581,0.00015,30]
[407961915,1772935831361,-150.0,0.00015,30]
[407961917,1772935831371,-250.0,0.00015175,2]
[407961919,1772935831381,-43.12082157,0.00015208,2]
[407961920,1772935831392,-239.18311374,0.00015208,2]
[407961921,1772935831402,-232.66293273,0.000153,2]
[407961922,1772935831415,-2843.51706727,0.000153,2]
[407961923,1772935831425,-756.9072434,0.00015308,2]
[407961924,1772935831438,-443.0927566,0.00015308,2]
[407961925,1772935831450,-300.0,0.00015308,2]
[407961926,1772935831460,-75.33296652,0.00015309,2]
[407961927,1772935831473,-250.0,0.00015309,2]
[407961928,1772935831485,-174.66703348,0.00015309,2]
[407961929,1772935831494,-500.0,0.00015309,2]
[407961930,1772935831504,-500.0,0.00015309,2]
[407961931,1772935831513,-500.0,0.00015309,2]
[407961932,1772935831523,-500.0,0.00015309,2]
[407961933,1772935831533,-500.0,0.00015309,2]
[407961934,1772935831546,-300.0,0.00015395,2]
[407961935,1772935831555,-500.0,0.00015396,2]
[407961937,1772935831564,-500.0,0.00015396,2]
[407961938,1772935831573,-510.02429333,0.00015396,2]
[407961939,1772935831582,-500.0,0.00015396,2]
[407961940,1772935831591,-596.48550275,0.00015396,2]
[407961941,1772935831600,-500.0,0.00015396,2]
[407961942,1772935831609,-500.0,0.00015396,2]
[407961944,1772935831619,-516.64501733,0.00015396,2]
[407961946,1772935831628,-500.0,0.00015396,2]
[407961948,1772935831637,-500.0,0.00015396,2]
[407961949,1772935831646,-502.08959512,0.00015396,2]
[407961950,1772935831655,-500.0,0.00015396,2]
[407961951,1772935831664,-500.0,0.00015396,2]
[407961952,1772935831674,-502.54021717,0.00015396,2]
[407961953,1772935831683,-500.0,0.00015396,2]
[407961954,1772935831692,-500.0,0.00015396,2]
[407961955,1772935831702,-500.0,0.00015396,2]
[407961956,1772935831711,-500.0,0.00015396,2]
[407961957,1772935831720,-377.0244698,0.00015396,2]
[407961958,1772935831732,-172.79,0.00015748,2]
[407961959,1772935831741,-2207.45371969,0.000162,5]
[407961960,1772935831750,-166.66,0.00016211,2]
[407961961,1772935831760,-995.27305216,0.00016322,2]
[407961962,1772935831768,-193.0,0.00016428,2]
[407961963,1772935831778,-2500.0,0.000165,2]
[407961964,1772935831787,-2500.0,0.000165,2]
[407961965,1772935831796,-2500.0,0.000165,2]
[407961966,1772935831807,-2500.0,0.000165,2]
[407961967,1772935831816,-2500.0,0.000165,2]
[407961968,1772935831825,-510.0,0.00016519,2]
[407961969,1772935831835,-166.66,0.00016552,2]
[407961970,1772935831844,-220.0,0.00016568,2]
[407961971,1772935831853,-1200.0,0.00016833,2]
[407961972,1772935831863,-291.53552374,0.00016867,2]
[407961973,1772935831872,-166.66,0.00016893,2]
[407961974,1772935831882,-9186.34,0.0001692,2]
[407961975,1772935831891,-150.99,0.00016922,2]
[407961976,1772935831900,-1206.86,0.00016922,2]
[407961977,1772935831910,-9999.99,0.00016922,2]
[407961978,1772935831919,-618.07,0.00016922,2]
[407961979,1772935831928,-9999.99,0.00016922,2]
[407961980,1772935831938,-9999.99,0.00016922,2]
[407961981,1772935831948,-2110.89,0.00016922,2]
[407961982,1772935831958,-150.99,0.00016922,2]
[407961983,1772935831968,-999.99,0.00016922,2]
[407961984,1772935831977,-9999.99,0.00016922,2]
[407961985,1772935831986,-3447.62,0.00016922,2]
[407961986,1772935831995,-258.89,0.0001693,2]
[407961987,1772935832005,-3240.0,0.00016934,2]
[407961988,1772935832014,-171.13,0.00016945,2]
[407961989,1772935832023,-4255.23466,0.00016956,2]
[407961990,1772935832033,-1368.0,0.00016957,2]
[407961991,1772935832042,-507.0,0.00017,2]
[407961992,1772935832051,-503.00003,0.00017,2]
[407961993,1772935832060,-20897.65,0.00017064,2]
[407961994,1772935832069,-519.05,0.00017134,2]
[407961995,1772935832078,-200.0,0.00017221,2]
[407961996,1772935832087,-166.66,0.00017234,2]
[407961997,1772935832096,-166.66,0.00017576,2]
[407961998,1772935832107,-151.0,0.00017717,2]
[407961999,1772935832123,-151.0,0.00017717,2]
[407962000,1772935832135,-151.0,0.00017717,2]
[407962001,1772935832144,-151.0,0.00017717,2]
[407962002,1772935832154,-151.0,0.00017717,2]
[407962003,1772935832163,-151.0,0.00017717,2]
[407962004,1772935832173,-151.0,0.00017717,2]
[407962005,1772935832183,-151.0,0.00017717,2]
[407962006,1772935832192,-151.0,0.00017717,2]
[407962007,1772935832202,-151.0,0.00017717,2]
[407962008,1772935832212,-151.0,0.00017717,2]
[407962009,1772935832221,-151.0,0.00017717,2]
[407962010,1772935832234,-151.0,0.00017717,2]
[407962011,1772935832244,-151.0,0.00017717,2]
[407962012,1772935832253,-151.0,0.00017717,2]
[407962013,1772935832264,-154.22309039,0.00017717,2]
[407962014,1772935832273,-866.0,0.0001772,2]
[407962015,1772935832282,-800.0,0.00017808,2]
[407962016,1772935832291,-166.66,0.00017917,2]
[407962017,1772935832300,-1600.0,0.00018904,2]
[407962018,1772935832310,-1473.0,0.00019013,2]
[407962019,1772935832319,-519.05,0.00019276,2]
[407962020,1772935832329,-707.66249833,0.00019562,2]
[407962021,1772935832338,-3119.14282828,0.00019699,2]
[407962022,1772935832347,-1403.21204333,0.00019799,2]
[407962023,1772935832356,-5000.0,0.00019799,2]
[407962024,1772935832365,-2500.0,0.00019799,2]